[Event "Titled Tuesday Blitz February 15 Late 2022"]
[White "Rosen, Eric"]
[Black "Dreev, Aleksey"]
[WhiteFideId "2032562"]
[BlackFideId "4100107"]
[WhiteElo "2572"]
[BlackElo "2809"]
[Result "0-1"]
[Round "04"]
[TimeControl "180+1"]
[Date "2022.02.16"]
[WhiteClock "0:00:03"]
[BlackClock "0:00:57"]

1. d4 {[%clk 0:03:00]}  d5 {[%clk 0:02:59]} 2. Bf4 {[%clk 0:03:00]}  c5 {[%clk 0:02:59]} 3. e3 {[%clk 0:03:00]}  Nc6 {[%clk 0:02:58]} 4. Nf3 {[%clk 0:03:00]}  Bg4 {[%clk 0:02:45]} 5. Nbd2 {[%clk 0:02:59]}  e6 {[%clk 0:02:45]} 6. c3 {[%clk 0:02:56]}  Bd6 {[%clk 0:02:43]} 7. Bxd6 {[%clk 0:02:50]}  Qxd6 {[%clk 0:02:43]} 8. Qa4 {[%clk 0:02:50]}  cxd4 {[%clk 0:02:33]} 9. Nxd4 {[%clk 0:02:43]}  Bh5 {[%clk 0:02:29]} 10. h4 {[%clk 0:01:45]}  Nf6 {[%clk 0:02:23]} 11. Bb5 {[%clk 0:01:39]}  O-O {[%clk 0:02:12]} 12. Bxc6 {[%clk 0:01:32]}  bxc6 {[%clk 0:02:13]} 13. Qxc6 {[%clk 0:01:33]}  Qb8 {[%clk 0:02:13]} 14. N2b3 {[%clk 0:01:25]}  a5 {[%clk 0:02:06]} 15. Qa4 {[%clk 0:01:23]}  Rc8 {[%clk 0:02:04]} 16. Nc6 {[%clk 0:00:45]}  Qc7 {[%clk 0:01:48]} 17. Nbd4 {[%clk 0:00:36]}  Ne4 {[%clk 0:01:47]} 18. f4 {[%clk 0:00:22]}  f6 {[%clk 0:01:36]} 19. Qa3 {[%clk 0:00:19]}  Nd6 {[%clk 0:01:32]} 20. g4 {[%clk 0:00:11]}  Be8 {[%clk 0:01:31]} 21. Nxa5 {[%clk 0:00:05]}  Rxa5 {[%clk 0:01:27]} 22. Nxe6 {[%clk 0:00:02]}  Qb6 {[%clk 0:01:19]} 23. Qb4 {[%clk 0:00:03]}  Qxe3+ {[%clk 0:01:17]} 24. Kd1 {[%clk 0:00:03]}  Qf3+ {[%clk 0:01:04]} 25. Kc2 {[%clk 0:00:03]}  Qg2+ {[%clk 0:01:02]} 26. Kb3 {[%clk 0:00:02]}  Rb5 {[%clk 0:01:00]} 27. Nd4 {[%clk 0:00:01]}  Rxb4+ {[%clk 0:00:59]} 28. Kxb4 {[%clk 0:00:02]}  Qxb2+ {[%clk 0:00:58]} 29. Ka5 {[%clk 0:00:03]}  Ra8# {[%clk 0:00:57]} 0-1


[Site "https://www.chess.com"]

[Event "Titled Tuesday Blitz February 15 Late 2022"]
[White "Sadhwani, Raunak"]
[Black "Dronavalli, Harika"]
[WhiteFideId "35093487"]
[BlackFideId "5015197"]
[WhiteElo "2616"]
[BlackElo "2382"]
[Result "1-0"]
[Round "04"]
[TimeControl "180+1"]
[Date "2022.02.15"]
[WhiteClock "0:00:17"]
[BlackClock "0:00:09"]

1. b3 {[%clk 0:03:00]}  Nf6 {[%clk 0:02:58]} 2. Bb2 {[%clk 0:03:01]}  g6 {[%clk 0:02:58]} 3. Nf3 {[%clk 0:03:01]}  Bg7 {[%clk 0:02:58]} 4. g3 {[%clk 0:03:01]}  d6 {[%clk 0:02:59]} 5. d4 {[%clk 0:03:01]}  b5 {[%clk 0:02:59]} 6. Bg2 {[%clk 0:02:58]}  Bb7 {[%clk 0:02:59]} 7. O-O {[%clk 0:02:59]}  O-O {[%clk 0:02:59]} 8. c4 {[%clk 0:02:59]}  bxc4 {[%clk 0:02:50]} 9. bxc4 {[%clk 0:03:00]}  c5 {[%clk 0:02:46]} 10. d5 {[%clk 0:02:59]}  Nbd7 {[%clk 0:02:46]} 11. Nbd2 {[%clk 0:02:57]}  Rb8 {[%clk 0:02:46]} 12. Qc2 {[%clk 0:02:53]}  Ba6 {[%clk 0:02:41]} 13. Rab1 {[%clk 0:02:53]}  Nb6 {[%clk 0:02:40]} 14. e4 {[%clk 0:02:51]}  Qe8 {[%clk 0:02:14]} 15. e5 {[%clk 0:02:39]}  Nfxd5 {[%clk 0:02:12]} 16. cxd5 {[%clk 0:02:32]}  Bxf1 {[%clk 0:02:12]} 17. Rxf1 {[%clk 0:02:17]}  Nxd5 {[%clk 0:02:10]} 18. Re1 {[%clk 0:02:08]}  Qb5 {[%clk 0:02:04]} 19. Ba1 {[%clk 0:02:02]}  Nb4 {[%clk 0:02:04]} 20. Qd1 {[%clk 0:01:34]}  dxe5 {[%clk 0:02:01]} 21. Bxe5 {[%clk 0:01:31]}  Rbd8 {[%clk 0:01:57]} 22. Bxg7 {[%clk 0:01:31]}  Kxg7 {[%clk 0:01:57]} 23. Qa1+ {[%clk 0:01:31]}  Kg8 {[%clk 0:01:54]} 24. Rxe7 {[%clk 0:01:28]}  Nc2 {[%clk 0:01:49]} 25. Qc1 {[%clk 0:01:23]}  Nd4 {[%clk 0:01:45]} 26. Nxd4 {[%clk 0:01:23]}  cxd4 {[%clk 0:01:45]} 27. Rxa7 {[%clk 0:01:16]}  Rc8 {[%clk 0:01:42]} 28. Rc7 {[%clk 0:01:06]}  Rxc7 {[%clk 0:01:32]} 29. Qxc7 {[%clk 0:01:07]}  Qb2 {[%clk 0:01:20]} 30. Nf1 {[%clk 0:00:56]}  Qxa2 {[%clk 0:01:19]} 31. Qd6 {[%clk 0:00:56]}  Qc4 {[%clk 0:01:12]} 32. h4 {[%clk 0:00:55]}  h5 {[%clk 0:00:54]} 33. Bd5 {[%clk 0:00:54]}  Qc2 {[%clk 0:00:52]} 34. Kg2 {[%clk 0:00:51]}  Qf5 {[%clk 0:00:50]} 35. Bf3 {[%clk 0:00:41]}  Qd3 {[%clk 0:00:49]} 36. Ne3 {[%clk 0:00:35]}  Rc8 {[%clk 0:00:29]} 37. Nd5 {[%clk 0:00:33]}  Rc2 {[%clk 0:00:19]} 38. Nf6+ {[%clk 0:00:25]}  Kg7 {[%clk 0:00:17]} 39. Qe5 {[%clk 0:00:22]}  Rxf2+ {[%clk 0:00:16]} 40. Kxf2 {[%clk 0:00:20]}  Qe3+ {[%clk 0:00:16]} 41. Qxe3 {[%clk 0:00:20]}  dxe3+ {[%clk 0:00:17]} 42. Kxe3 {[%clk 0:00:21]}  Kxf6 {[%clk 0:00:18]} 43. Kf4 {[%clk 0:00:21]}  Kg7 {[%clk 0:00:18]} 44. Bxh5 {[%clk 0:00:17]}  gxh5 {[%clk 0:00:12]} 45. Kg5 {[%clk 0:00:17]}  f6+ {[%clk 0:00:09]} 46. Kxh5 {[%clk 0:00:17]}  Kf7 {[%clk 0:00:09]} 47. Kg4 {[%clk 0:00:17]}  Kg6 {[%clk 0:00:10]} 48. Kf4 {[%clk 0:00:17]}  f5 {[%clk 0:00:09]} 49. Ke5 {[%clk 0:00:17]} 1-0


[Site "https://www.chess.com"]

[Event "Titled Tuesday Blitz February 15 Late 2022"]
[White "Sailer, Mike"]
[Black "Remizov, Yaroslav"]
[WhiteFideId "2012901"]
[BlackFideId "34134015"]
[WhiteElo "2109"]
[BlackElo "2360"]
[Result "0-1"]
[Round "04"]
[TimeControl "180+1"]
[Date "2022.02.16"]
[WhiteClock "0:01:00"]
[BlackClock "0:02:31"]

1. d4 {[%clk 0:03:00]}  e6 {[%clk 0:02:57]} 2. Nf3 {[%clk 0:03:01]}  a6 {[%clk 0:02:55]} 3. Bf4 {[%clk 0:03:01]}  c5 {[%clk 0:02:55]} 4. e3 {[%clk 0:03:00]}  Nc6 {[%clk 0:02:54]} 5. Be2 {[%clk 0:02:58]}  Nf6 {[%clk 0:02:55]} 6. O-O {[%clk 0:02:59]}  d5 {[%clk 0:02:55]} 7. Nc3 {[%clk 0:02:51]}  cxd4 {[%clk 0:02:51]} 8. exd4 {[%clk 0:02:51]}  Bd6 {[%clk 0:02:51]} 9. Ne5 {[%clk 0:02:49]}  Bxe5 {[%clk 0:02:50]} 10. Bxe5 {[%clk 0:02:42]}  Nxe5 {[%clk 0:02:50]} 11. dxe5 {[%clk 0:02:42]}  Nd7 {[%clk 0:02:51]} 12. Qd4 {[%clk 0:02:37]}  Qb6 {[%clk 0:02:49]} 13. Qxb6 {[%clk 0:02:32]}  Nxb6 {[%clk 0:02:50]} 14. f4 {[%clk 0:02:26]}  Bd7 {[%clk 0:02:50]} 15. g4 {[%clk 0:02:17]}  Rc8 {[%clk 0:02:49]} 16. f5 {[%clk 0:02:13]}  h5 {[%clk 0:02:46]} 17. fxe6 {[%clk 0:02:08]}  Bxe6 {[%clk 0:02:45]} 18. gxh5 {[%clk 0:02:06]}  d4 {[%clk 0:02:43]} 19. Ne4 {[%clk 0:02:02]}  Rxc2 {[%clk 0:02:43]} 20. Nd6+ {[%clk 0:02:02]}  Ke7 {[%clk 0:02:42]} 21. Bf3 {[%clk 0:01:44]}  Nc4 {[%clk 0:02:37]} 22. Nxb7 {[%clk 0:01:39]}  d3 {[%clk 0:02:35]} 23. Nc5 {[%clk 0:01:26]}  Nd2 {[%clk 0:02:34]} 24. Nxd3 {[%clk 0:01:15]}  Nxf1 {[%clk 0:02:33]} 25. Rxf1 {[%clk 0:01:14]}  Bc4 {[%clk 0:02:34]} 26. Be4 {[%clk 0:01:13]}  Bxd3 {[%clk 0:02:33]} 27. Bxd3 {[%clk 0:01:12]}  Rxb2 {[%clk 0:02:33]} 28. Bxa6 {[%clk 0:01:07]}  Rxh5 {[%clk 0:02:33]} 29. Rf2 {[%clk 0:01:05]}  Rxf2 {[%clk 0:02:32]} 30. Kxf2 {[%clk 0:01:05]}  Rxh2+ {[%clk 0:02:33]} 31. Ke3 {[%clk 0:01:05]}  Rxa2 {[%clk 0:02:34]} 32. Bc4 {[%clk 0:01:03]}  Ra3+ {[%clk 0:02:34]} 33. Kd4 {[%clk 0:01:03]}  Ra4 {[%clk 0:02:34]} 34. Kc5 {[%clk 0:01:03]}  g5 {[%clk 0:02:34]} 35. Bb5 {[%clk 0:01:00]}  Ra5 {[%clk 0:02:31]} 0-1


[Site "https://www.chess.com"]

[Event "Titled Tuesday Blitz February 15 Late 2022"]
[White "Sanchez, Robert"]
[Black "Slugin, Sergey"]
[WhiteFideId "2034360"]
[BlackFideId "4122569"]
[WhiteElo "2310"]
[BlackElo "2358"]
[Result "0-1"]
[Round "04"]
[TimeControl "180+1"]
[Date "2022.02.16"]
[WhiteClock "0:00:05"]
[BlackClock "0:00:04"]

1. e4 {[%clk 0:02:55]}  c5 {[%clk 0:02:58]} 2. Nf3 {[%clk 0:02:55]}  e6 {[%clk 0:02:58]} 3. d4 {[%clk 0:02:55]}  cxd4 {[%clk 0:02:59]} 4. Nxd4 {[%clk 0:02:55]}  Nc6 {[%clk 0:02:59]} 5. Nc3 {[%clk 0:02:54]}  Qc7 {[%clk 0:02:59]} 6. Nb3 {[%clk 0:02:52]}  Nf6 {[%clk 0:02:55]} 7. Bd3 {[%clk 0:02:52]}  Bb4 {[%clk 0:02:50]} 8. O-O {[%clk 0:02:52]}  O-O {[%clk 0:02:43]} 9. Be3 {[%clk 0:02:46]}  Bxc3 {[%clk 0:02:34]} 10. bxc3 {[%clk 0:02:45]}  d5 {[%clk 0:02:34]} 11. exd5 {[%clk 0:02:40]}  Nxd5 {[%clk 0:02:34]} 12. Bd2 {[%clk 0:02:39]}  Ne5 {[%clk 0:02:31]} 13. Be4 {[%clk 0:02:28]}  Nxc3 {[%clk 0:02:21]} 14. Qe1 {[%clk 0:02:12]}  Nxe4 {[%clk 0:02:18]} 15. Qxe4 {[%clk 0:02:12]}  Ng6 {[%clk 0:02:12]} 16. c4 {[%clk 0:02:07]}  Bd7 {[%clk 0:02:10]} 17. h4 {[%clk 0:01:55]}  Bc6 {[%clk 0:02:07]} 18. Qg4 {[%clk 0:01:54]}  f5 {[%clk 0:02:00]} 19. Qg5 {[%clk 0:01:53]}  f4 {[%clk 0:01:18]} 20. Bc3 {[%clk 0:01:40]}  Rf5 {[%clk 0:00:50]} 21. Qg4 {[%clk 0:01:39]}  Qf7 {[%clk 0:00:46]} 22. Nd4 {[%clk 0:01:25]}  h5 {[%clk 0:00:36]} 23. Qh3 {[%clk 0:01:12]}  Rc5 {[%clk 0:00:35]} 24. Nxe6 {[%clk 0:00:49]}  Rxc4 {[%clk 0:00:26]} 25. Ng5 {[%clk 0:00:47]}  Qd5 {[%clk 0:00:20]} 26. Rac1 {[%clk 0:00:24]}  f3 {[%clk 0:00:16]} 27. Rfd1 {[%clk 0:00:19]}  Nf4 {[%clk 0:00:06]} 28. Qh2 {[%clk 0:00:05]}  Ne2+ {[%clk 0:00:06]} 29. Kf1 {[%clk 0:00:05]}  fxg2+ {[%clk 0:00:04]} 30. Kxe2 {[%clk 0:00:05]}  Re8+ {[%clk 0:00:04]} 0-1


[Site "https://www.chess.com"]

[Event "Titled Tuesday Blitz February 15 Late 2022"]
[White "Sarkar, Justin"]
[Black "Brunner, Nicolas"]
[WhiteFideId "2010011"]
[BlackFideId "620246"]
[WhiteElo "2038"]
[BlackElo "2372"]
[Result "1/2-1/2"]
[Round "04"]
[TimeControl "180+1"]
[Date "2022.02.16"]
[WhiteClock "0:00:03"]
[BlackClock "0:00:03"]

1. d4 {[%clk 0:02:56]}  d5 {[%clk 0:02:59]} 2. c4 {[%clk 0:02:55]}  e6 {[%clk 0:02:59]} 3. Nc3 {[%clk 0:02:54]}  Be7 {[%clk 0:02:57]} 4. Nf3 {[%clk 0:02:28]}  Nf6 {[%clk 0:02:56]} 5. e3 {[%clk 0:02:28]}  O-O {[%clk 0:02:53]} 6. Be2 {[%clk 0:02:25]}  dxc4 {[%clk 0:02:50]} 7. O-O {[%clk 0:02:20]}  a6 {[%clk 0:02:49]} 8. a4 {[%clk 0:02:16]}  c5 {[%clk 0:02:49]} 9. Bxc4 {[%clk 0:01:54]}  Nc6 {[%clk 0:02:48]} 10. Qe2 {[%clk 0:01:43]}  cxd4 {[%clk 0:02:45]} 11. Rd1 {[%clk 0:01:43]}  Nd5 {[%clk 0:02:29]} 12. Nxd5 {[%clk 0:01:09]}  exd5 {[%clk 0:02:29]} 13. Nxd4 {[%clk 0:01:09]}  Bf6 {[%clk 0:02:13]} 14. Nxc6 {[%clk 0:00:41]}  bxc6 {[%clk 0:02:12]} 15. a5 {[%clk 0:00:41]}  Qe7 {[%clk 0:02:04]} 16. Bd3 {[%clk 0:00:39]}  Bb7 {[%clk 0:01:43]} 17. Qc2 {[%clk 0:00:30]}  g6 {[%clk 0:01:41]} 18. e4 {[%clk 0:00:28]}  Rfe8 {[%clk 0:01:24]} 19. exd5 {[%clk 0:00:28]}  cxd5 {[%clk 0:01:23]} 20. Bf4 {[%clk 0:00:26]}  Rac8 {[%clk 0:01:21]} 21. Qd2 {[%clk 0:00:23]}  Qd7 {[%clk 0:01:00]} 22. Rac1 {[%clk 0:00:19]}  d4 {[%clk 0:00:56]} 23. f3 {[%clk 0:00:12]}  h5 {[%clk 0:00:51]} 24. b4 {[%clk 0:00:11]}  h4 {[%clk 0:00:49]} 25. h3 {[%clk 0:00:09]}  Rxc1 {[%clk 0:00:33]} 26. Rxc1 {[%clk 0:00:09]}  Rc8 {[%clk 0:00:34]} 27. Rxc8+ {[%clk 0:00:09]}  Qxc8 {[%clk 0:00:33]} 28. Qc1 {[%clk 0:00:08]}  Qf8 {[%clk 0:00:17]} 29. Qc5 {[%clk 0:00:04]}  Qxc5 {[%clk 0:00:13]} 30. bxc5 {[%clk 0:00:03]}  Kf8 {[%clk 0:00:13]} 31. c6 {[%clk 0:00:02]}  Bxc6 {[%clk 0:00:12]} 32. Bxa6 {[%clk 0:00:02]}  Ke8 {[%clk 0:00:12]} 33. Bc4 {[%clk 0:00:02]}  Bd8 {[%clk 0:00:10]} 34. a6 {[%clk 0:00:02]}  Bb6 {[%clk 0:00:08]} 35. Kf1 {[%clk 0:00:02]}  f6 {[%clk 0:00:07]} 36. Ke2 {[%clk 0:00:02]}  g5 {[%clk 0:00:07]} 37. Bh2 {[%clk 0:00:03]}  Kd7 {[%clk 0:00:07]} 38. Kd3 {[%clk 0:00:03]}  Ba8 {[%clk 0:00:04]} 39. Bg1 {[%clk 0:00:03]}  f5 {[%clk 0:00:03]} 40. Bxd4 {[%clk 0:00:03]}  Kc6 {[%clk 0:00:03]} 41. Bxb6 {[%clk 0:00:03]}  Kxb6 {[%clk 0:00:03]} 42. Be6 {[%clk 0:00:03]}  g4 {[%clk 0:00:02]} 43. Bxf5 {[%clk 0:00:03]}  gxf3 {[%clk 0:00:02]} 44. gxf3 {[%clk 0:00:03]}  Bxf3 {[%clk 0:00:02]} 45. Ke3 {[%clk 0:00:03]}  Bg2 {[%clk 0:00:02]} 46. Kf4 {[%clk 0:00:03]}  Bxh3 {[%clk 0:00:02]} 47. Bxh3 {[%clk 0:00:02]}  Kxa6 {[%clk 0:00:02]} 48. Kg5 {[%clk 0:00:02]}  Kb6 {[%clk 0:00:03]} 49. Kxh4 {[%clk 0:00:03]} 1/2-1/2


[Site "https://www.chess.com"]

[Event "Titled Tuesday Blitz February 15 Late 2022"]
[White "Saveliev, Alexei"]
[Black "Bon, Michael"]
[WhiteFideId "24128546"]
[BlackFideId "620696"]
[WhiteElo "2281"]
[BlackElo "2452"]
[Result "0-1"]
[Round "04"]
[TimeControl "180+1"]
[Date "2022.02.16"]
[WhiteClock "0:00:01"]
[BlackClock "0:00:04"]

1. c4 {[%clk 0:03:00]}  e5 {[%clk 0:02:57]} 2. Nc3 {[%clk 0:02:59]}  Nc6 {[%clk 0:02:55]} 3. Nf3 {[%clk 0:02:59]}  Nf6 {[%clk 0:02:53]} 4. e3 {[%clk 0:02:59]}  Bb4 {[%clk 0:02:53]} 5. Qc2 {[%clk 0:03:00]}  O-O {[%clk 0:02:48]} 6. Nd5 {[%clk 0:03:00]}  a5 {[%clk 0:02:45]} 7. Qf5 {[%clk 0:02:47]}  Nxd5 {[%clk 0:02:39]} 8. cxd5 {[%clk 0:02:46]}  d6 {[%clk 0:02:39]} 9. Qc2 {[%clk 0:02:36]}  Ne7 {[%clk 0:02:39]} 10. a3 {[%clk 0:02:27]}  Bc5 {[%clk 0:02:38]} 11. Nxe5 {[%clk 0:02:23]}  dxe5 {[%clk 0:02:12]} 12. Qxc5 {[%clk 0:02:22]}  Nxd5 {[%clk 0:02:11]} 13. Be2 {[%clk 0:02:15]}  b6 {[%clk 0:02:06]} 14. Qc2 {[%clk 0:02:04]}  Bb7 {[%clk 0:02:06]} 15. O-O {[%clk 0:02:02]}  Nf6 {[%clk 0:01:43]} 16. b3 {[%clk 0:01:55]}  Qd6 {[%clk 0:01:19]} 17. Bb2 {[%clk 0:01:52]}  Rad8 {[%clk 0:01:15]} 18. Rfd1 {[%clk 0:01:50]}  c5 {[%clk 0:01:08]} 19. d4 {[%clk 0:01:39]}  exd4 {[%clk 0:01:03]} 20. exd4 {[%clk 0:01:40]}  Be4 {[%clk 0:00:56]} 21. Bd3 {[%clk 0:01:02]}  Ng4 {[%clk 0:00:40]} 22. Bxe4 {[%clk 0:01:01]}  Qxh2+ {[%clk 0:00:39]} 23. Kf1 {[%clk 0:01:01]}  Rfe8 {[%clk 0:00:31]} 24. dxc5 {[%clk 0:00:25]}  Rxd1+ {[%clk 0:00:25]} 25. Rxd1 {[%clk 0:00:26]}  f5 {[%clk 0:00:25]} 26. Qc4+ {[%clk 0:00:11]}  Kh8 {[%clk 0:00:22]} 27. Qe6 {[%clk 0:00:07]}  Qh5 {[%clk 0:00:15]} 28. Qd7 {[%clk 0:00:05]}  Nf6 {[%clk 0:00:12]} 29. Bxf6 {[%clk 0:00:04]}  gxf6 {[%clk 0:00:12]} 30. g3 {[%clk 0:00:04]}  fxe4 {[%clk 0:00:11]} 31. Kg2 {[%clk 0:00:03]}  Qf3+ {[%clk 0:00:11]} 32. Kg1 {[%clk 0:00:04]}  Re5 {[%clk 0:00:08]} 33. Rd6 {[%clk 0:00:02]}  Rh5 {[%clk 0:00:05]} 34. Qe8+ {[%clk 0:00:02]}  Kg7 {[%clk 0:00:05]} 35. Rd7+ {[%clk 0:00:03]}  Kh6 {[%clk 0:00:05]} 36. Qf8+ {[%clk 0:00:03]}  Kg5 {[%clk 0:00:05]} 37. Rg7+ {[%clk 0:00:03]}  Kf5 {[%clk 0:00:05]} 38. Qc8+ {[%clk 0:00:04]}  Ke5 {[%clk 0:00:04]} 39. Qc7+ {[%clk 0:00:03]}  Kd4 {[%clk 0:00:04]} 40. Qd6+ {[%clk 0:00:01]}  Kc3 {[%clk 0:00:04]} 0-1


[Site "https://www.chess.com"]

[Event "Titled Tuesday Blitz February 15 Late 2022"]
[White "Sliwicki, Damian"]
[Black "Erdogdu, Mert"]
[WhiteFideId "1127128"]
[BlackFideId "6301495"]
[WhiteElo "2084"]
[BlackElo "2485"]
[Result "0-1"]
[Round "04"]
[TimeControl "180+1"]
[Date "2022.02.16"]
[WhiteClock "0:00:27"]
[BlackClock "0:01:28"]

1. e4 {[%clk 0:02:59]}  c5 {[%clk 0:03:00]} 2. Nf3 {[%clk 0:02:58]}  d6 {[%clk 0:03:00]} 3. d4 {[%clk 0:02:55]}  cxd4 {[%clk 0:03:00]} 4. Qxd4 {[%clk 0:02:50]}  Nc6 {[%clk 0:03:00]} 5. Bb5 {[%clk 0:02:50]}  Bd7 {[%clk 0:03:01]} 6. Bxc6 {[%clk 0:02:45]}  Bxc6 {[%clk 0:03:02]} 7. Nc3 {[%clk 0:02:45]}  Nf6 {[%clk 0:03:02]} 8. Bg5 {[%clk 0:02:44]}  e6 {[%clk 0:03:02]} 9. O-O-O {[%clk 0:02:44]}  Be7 {[%clk 0:03:02]} 10. Kb1 {[%clk 0:02:42]}  O-O {[%clk 0:03:01]} 11. Rhe1 {[%clk 0:02:42]}  b5 {[%clk 0:03:01]} 12. e5 {[%clk 0:02:36]}  dxe5 {[%clk 0:03:01]} 13. Qxe5 {[%clk 0:02:35]}  Qb6 {[%clk 0:03:00]} 14. Nd4 {[%clk 0:02:31]}  Rfc8 {[%clk 0:02:59]} 15. Nxe6 {[%clk 0:02:20]}  b4 {[%clk 0:02:37]} 16. Ne2 {[%clk 0:01:50]}  fxe6 {[%clk 0:02:16]} 17. Qxe6+ {[%clk 0:01:48]}  Kf8 {[%clk 0:02:17]} 18. Nd4 {[%clk 0:01:46]}  Rc7 {[%clk 0:02:01]} 19. Bxf6 {[%clk 0:01:07]}  Bxf6 {[%clk 0:01:51]} 20. Qc4 {[%clk 0:00:45]}  Bd7 {[%clk 0:01:42]} 21. Qd5 {[%clk 0:00:39]}  Rd8 {[%clk 0:01:33]} 22. Re6 {[%clk 0:00:27]}  Bxe6 {[%clk 0:01:28]} 23. Nxe6+ {[%clk 0:00:27]}  Qxe6 {[%clk 0:01:28]} 0-1


[Site "https://www.chess.com"]

[Event "Titled Tuesday Blitz February 15 Late 2022"]
[White "Stanisz, Patryk"]
[Black "Tan, Jun Ying"]
[WhiteFideId "1123106"]
[BlackFideId "5710413"]
[WhiteElo "1876"]
[BlackElo "1827"]
[Result "1/2-1/2"]
[Round "04"]
[TimeControl "180+1"]
[Date "2022.02.16"]
[WhiteClock "0:00:07"]
[BlackClock "0:00:21"]

1. Nf3 {[%clk 0:02:59]}  c5 {[%clk 0:02:59]} 2. g3 {[%clk 0:02:58]}  b6 {[%clk 0:02:58]} 3. Bg2 {[%clk 0:02:58]}  Bb7 {[%clk 0:02:59]} 4. O-O {[%clk 0:02:59]}  Nf6 {[%clk 0:02:59]} 5. d3 {[%clk 0:02:59]}  g6 {[%clk 0:02:55]} 6. e4 {[%clk 0:02:57]}  Bg7 {[%clk 0:02:55]} 7. Nc3 {[%clk 0:02:44]}  O-O {[%clk 0:02:53]} 8. h4 {[%clk 0:02:35]}  d5 {[%clk 0:02:47]} 9. exd5 {[%clk 0:02:32]}  Nxd5 {[%clk 0:02:47]} 10. Bd2 {[%clk 0:02:28]}  Nxc3 {[%clk 0:02:38]} 11. Bxc3 {[%clk 0:02:28]}  Bxc3 {[%clk 0:02:36]} 12. bxc3 {[%clk 0:02:29]}  Nc6 {[%clk 0:02:35]} 13. Qd2 {[%clk 0:02:29]}  Qd6 {[%clk 0:02:32]} 14. Rfe1 {[%clk 0:02:25]}  Qf6 {[%clk 0:02:31]} 15. Re2 {[%clk 0:01:38]}  Rad8 {[%clk 0:02:28]} 16. Rae1 {[%clk 0:01:38]}  Rd6 {[%clk 0:02:27]} 17. Ng5 {[%clk 0:01:32]}  Rd7 {[%clk 0:02:06]} 18. Bh3 {[%clk 0:01:29]}  Rc7 {[%clk 0:01:52]} 19. Bg2 {[%clk 0:01:21]}  Rd8 {[%clk 0:01:41]} 20. Ne4 {[%clk 0:01:17]}  Qg7 {[%clk 0:01:40]} 21. Ng5 {[%clk 0:01:10]}  h6 {[%clk 0:01:34]} 22. Nh3 {[%clk 0:01:08]}  c4 {[%clk 0:01:32]} 23. Nf4 {[%clk 0:01:02]}  cxd3 {[%clk 0:01:29]} 24. cxd3 {[%clk 0:01:03]}  Rcd7 {[%clk 0:01:28]} 25. d4 {[%clk 0:00:58]}  Na5 {[%clk 0:01:18]} 26. Rxe7 {[%clk 0:00:52]}  Bxg2 {[%clk 0:01:14]} 27. Kxg2 {[%clk 0:00:51]}  Qf6 {[%clk 0:01:05]} 28. Re8+ {[%clk 0:00:41]}  Rxe8 {[%clk 0:01:02]} 29. Rxe8+ {[%clk 0:00:42]}  Kg7 {[%clk 0:01:03]} 30. Qd3 {[%clk 0:00:31]}  Nb7 {[%clk 0:00:50]} 31. Re2 {[%clk 0:00:27]}  Nd6 {[%clk 0:00:49]} 32. Qe3 {[%clk 0:00:23]}  Nf5 {[%clk 0:00:47]} 33. Qe8 {[%clk 0:00:21]}  Rc7 {[%clk 0:00:43]} 34. Qe5 {[%clk 0:00:19]}  Qxe5 {[%clk 0:00:41]} 35. dxe5 {[%clk 0:00:20]}  Rxc3 {[%clk 0:00:41]} 36. e6 {[%clk 0:00:21]}  fxe6 {[%clk 0:00:39]} 37. Rxe6 {[%clk 0:00:20]}  Rc2 {[%clk 0:00:33]} 38. Rxg6+ {[%clk 0:00:19]}  Kf7 {[%clk 0:00:34]} 39. h5 {[%clk 0:00:14]}  Rxa2 {[%clk 0:00:33]} 40. Nd5 {[%clk 0:00:13]}  Ng7 {[%clk 0:00:27]} 41. Rf6+ {[%clk 0:00:11]}  Kg8 {[%clk 0:00:25]} 42. Rxh6 {[%clk 0:00:12]}  Ra5 {[%clk 0:00:24]} 43. Ne7+ {[%clk 0:00:09]}  Kf7 {[%clk 0:00:25]} 44. Ng6 {[%clk 0:00:08]}  Rxh5 {[%clk 0:00:24]} 45. Rxh5 {[%clk 0:00:06]}  Nxh5 {[%clk 0:00:24]} 46. Ne5+ {[%clk 0:00:07]}  Ke6 {[%clk 0:00:25]} 47. f4 {[%clk 0:00:05]}  b5 {[%clk 0:00:25]} 48. Kf3 {[%clk 0:00:04]}  a5 {[%clk 0:00:20]} 49. Nc6 {[%clk 0:00:04]}  a4 {[%clk 0:00:20]} 50. Nd4+ {[%clk 0:00:05]}  Kd5 {[%clk 0:00:20]} 51. Nxb5 {[%clk 0:00:06]}  Kc4 {[%clk 0:00:20]} 52. Na3+ {[%clk 0:00:06]}  Kd5 {[%clk 0:00:20]} 53. g4 {[%clk 0:00:06]}  Nf6 {[%clk 0:00:20]} 54. g5 {[%clk 0:00:06]}  Nd7 {[%clk 0:00:20]} 55. Kg4 {[%clk 0:00:06]}  Ke6 {[%clk 0:00:19]} 56. f5+ {[%clk 0:00:06]}  Kf7 {[%clk 0:00:20]} 57. Kf4 {[%clk 0:00:05]}  Nb6 {[%clk 0:00:20]} 58. Ke5 {[%clk 0:00:06]}  Nd7+ {[%clk 0:00:20]} 59. Kd6 {[%clk 0:00:06]}  Nb6 {[%clk 0:00:20]} 60. Kc6 {[%clk 0:00:06]}  Nc8 {[%clk 0:00:20]} 61. Kb5 {[%clk 0:00:06]}  Ne7 {[%clk 0:00:20]} 62. f6 {[%clk 0:00:06]}  Ng8 {[%clk 0:00:20]} 63. Kxa4 {[%clk 0:00:06]}  Nxf6 {[%clk 0:00:21]} 64. gxf6 {[%clk 0:00:07]}  Kxf6 {[%clk 0:00:21]} 1/2-1/2


[Site "https://www.chess.com"]